Cogmind - Beta 13 X2 --- EXPLORER MODE // 2024.02.01 @ 12:36:30 // Winter2019/RPGLIKE Player: MOLDE CANNON Result: Destroyed self via exploding Z-Power Performance ------------- Evolutions (3) 1500 Regions Visited (12) 2400 Robots Destroyed (255) 1275 Value Destroyed (9162) 9162 Prototype IDs (45) 900 Alien Tech Used (1) 200 Bonus (1164) 1164 TOTAL SCORE: 16601 Bonus ------- High Alert Combat Kills 892 Follower Combat Kills 40 Entered Garrisons 200 Met Imprinter 300 Friendly Fire -268 Cogmind --------- Core Integrity 0/1450 Matter 300/300 Energy 845/1225 System Corruption 0% Temperature Cool (0) Movement Rolling (115) Ox1 Location -7/Deep Caves Parts ------- > --- POWER (3) -------- Hybrid Deuterium Engine Enhanced Nuclear Core Antimatter Reactor > --- PROPULSION (4) --- Armored Huge Wheel Armored Huge Wheel > --- UTILITY (12) ----- Spectral Analyzer Long-range Sensor Array Improved Signal Interpreter Transport Network Coupler Experimental Actuator Array Powered Armor 1C-UTU's Buckler Improved Shield Generator Makeshift Hacking Suite Improved Hacking Suite Advanced System Shield Advanced System Restoration Module > --- WEAPON (3) ------- HERF Cannon Power Maul 1C-UTU's Sword "Choppy" > --- INVENTORY (4) ---- Encrypted Comm Array Mobile Refinery Mk. CCLXVII Gauss Rifle Peak State ------------ > --- POWER ------------ Hybrid Deuterium Engine Enhanced Nuclear Core Antimatter Reactor > --- PROPULSION ------- Armored Huge Wheel Armored Huge Wheel > --- UTILITY ---------- Spectral Analyzer Long-range Sensor Array Improved Signal Interpreter Transport Network Coupler Experimental Actuator Array Powered Armor 1C-UTU's Buckler Improved Shield Generator Makeshift Hacking Suite Improved Hacking Suite Advanced System Shield Advanced System Shield > --- WEAPON ----------- HERF Cannon Power Maul 1C-UTU's Sword "Choppy" > --- INVENTORY -------- Encrypted Comm Array Advanced System Restoration Module Mobile Refinery Mk. CCLXVII Gauss Rifle [Rating: 123] Favorites ----------- Power Hybrid Deuterium Engine Engine Hybrid Deuterium Engine Power Core Enhanced Nuclear Core Reactor Antimatter Reactor Propulsion Wheel Wheel Wheel Hover Unit Backup Propulsion III Utility Makeshift Hacking Suite Device Long-range Sensor Array Storage High-capacity Matter Pod Processor Transport Network Coupler Hackware Makeshift Hacking Suite Protection Powered Armor Weapon Light Cannon Energy Gun EM Pulse Gun Energy Cannon HERF Cannon Ballistic Gun Gauss Rifle Ballistic Cannon Light Cannon Launcher Improved Grenade Launcher Special Weapon Plasma Cutter Impact Weapon Power Maul Slashing Weapon 1C-UTU's Sword "Choppy" Special Melee Weapon Dirty Datajack Build | -11 -10 -10 -8 -8 -8 -7 -7 -7 -7 -7 -7 -7 ------- Run | Yrd Mat Sub Mat Gar Mat Fac Was Fac Low Low Zio Dee Slots Evolved 17 | 6 . 1 5 1 1 . . 3 . . . . Power 2 | . . . 1 . . . . 1 . . . . Propulsion 3 | 1 . . 1 . . . . 1 . . . . Utility 10 | 4 . 1 3 . 1 . . 1 . . . . Weapon 2 | 1 . . . 1 . . . . . . . . Parts Attached 138 | 11 5 6 28 7 3 1 4 42 7 4 20 . Power 25 | 2 . 1 7 1 . . . 11 2 . 1 . Engine 9 | 2 . 1 2 . . . . 3 1 . . . Core 12 | . . . 5 1 . . . 6 . . . . Reactor 4 | . . . . . . . . 2 1 . 1 . Propulsion 7 | 2 . . 1 . . . . 4 . . . . Treads . | . . . . . . . . . . . . . Leg . | . . . . . . . . . . . . . Wheel 6 | 2 . . 1 . . . . 3 . . . . Hover 1 | . . . . . . . . 1 . . . . Flight . | . . . . . . . . . . . . . Utility 72 | 5 2 3 11 2 2 1 2 21 4 3 16 . Device 39 | 2 2 . 3 2 1 1 1 14 4 3 6 . Storage 2 | . . 1 1 . . . . . . . . . Processor 9 | 1 . . 3 . . . . 1 . . 4 . Hackware 8 | . . 1 2 . 1 . 1 2 . . 1 . Protection 14 | 2 . 1 2 . . . . 4 . . 5 . Artifact . | . . . . . . . . . . . . . Weapon 34 | 2 3 2 9 4 1 . 2 6 1 1 3 . Energy Gun 2 | 1 . . 1 . . . . . . . . . Energy Cannon 3 | . . . . . . . . 3 . . . . Ballistic Gun 3 | 1 . . 1 . . . . 1 . . . . Ballistic Cannon 12 | . 3 1 6 2 . . . . . . . . Launcher 4 | . . 1 1 1 1 . . . . . . . Special Weapon 3 | . . . . 1 . . . . 1 . 1 . Impact Weapon 3 | . . . . . . . . 1 . 1 1 . Slashing Weapon 1 | . . . . . . . . . . . 1 . Piercing Weapon . | . . . . . . . . . . . . . Special Melee Weapon 3 | . . . . . . . 2 1 . . . . Unidentified Prototypes 11 | . . . 2 . . . . . . 1 8 . Corrupted Parts 2 | . . . . . . . . . . . 2 . System Corruption 6 | . . . . . . . . . . . 6 . Parts Lost 12 | . . . 1 . 1 . 7 . . . 3 . Power 3 | . . . 1 . . . 2 . . . . . Propulsion . | . . . . . . . . . . . . . Utility 6 | . . . . . 1 . 3 . . . 2 . Weapon 3 | . . . . . . . 2 . . . 1 . Highest Loss Streak 6 | . . . 1 . 1 . 6 . . . 2 . To Critical Strikes 1 | . . . . . . . . . . . 1 . Average Slot Usage (%) 93 | . 100 100 97 99 99 100 60 87 90 89 89 90 Engine 5 | . 10 9 3 . . . . 3 9 9 5 4 Core 4 | . . . 5 11 11 11 4 5 4 4 4 4 Wheel 13 | . 20 18 18 17 16 16 6 7 9 9 9 9 Device 21 | . 29 31 24 17 22 22 12 15 18 19 17 18 Storage 1 | . . 6 5 . . . . . . . . . Processor 8 | . 2 . 9 11 11 11 7 9 9 9 12 13 Hackware 13 | . . 5 8 17 13 16 16 20 19 18 16 13 Protection 6 | . 18 9 6 5 5 5 1 5 4 4 5 9 Energy Cannon 1 | . . . . . . . . 2 4 4 4 4 Ballistic Gun 2 | . 8 . 1 . . . . 4 4 4 2 . Ballistic Cannon 6 | . 9 17 11 11 11 11 3 . . . . . Impact Weapon 1 | . . . . . . . . 4 3 3 2 4 Naked Turns . | . . . . . . . . . . . . . Heaviest Build 77 | 15 18 23 39 48 60 60 60 77 67 60 76 76 Greatest Support 61 | 20 20 20 35 35 35 35 35 61 61 61 61 61 Greatest Overweight (x) 1 | 1 . 1 1 1 1 1 1 1 1 . 1 1 Average Overweight (x) . | . . . . . 1 1 . . . . . 1 Largest Inventory Capacity 4 | 2 3 3 4 4 4 4 4 4 4 4 4 4 Average Capacity 3 | 2 2 3 3 4 4 4 4 4 4 4 4 4 Most Carried 4 | 2 3 3 4 4 4 4 4 4 4 4 4 3 Average Carried 3 | . 2 2 3 3 3 4 3 3 3 3 3 3 Final Capacity 4 | 2 3 3 4 4 4 4 4 4 4 4 4 4 Final Carried 4 | 2 3 3 4 4 4 4 4 4 4 3 3 3 Class Distribution -------------------- 32% | Wizard-Assassin 25% | Hacker-Mutant 23% | Hacker-Skirmisher 9% | Wizard-Skirmisher 5% | Wizard-Gladiator Dominant Class ---------------- Hacker-Mutant | -10/Materials Hacker-Mutant | -10/Subcaves Hacker-Skirmisher | -8/Materials Hacker-Skirmisher | -8/Garrison Hacker-Skirmisher | -8/Materials Hacker-Skirmisher | -7/Factory Hacker-Mutant | -7/Waste Wizard-Assassin | -7/Factory Wizard-Assassin | -7/Lower Caves Wizard-Assassin | -7/Lower Caves Wizard-Skirmisher | -7/Zion Wizard-Gladiator | -7/Deep Caves Resources | -11 -10 -10 -8 -8 -8 -7 -7 -7 -7 -7 -7 -7 ----------- Run | Yrd Mat Sub Mat Gar Mat Fac Was Fac Low Low Zio Dee Matter Collected 6365 | 348 445 963 1266 734 1102 145 135 633 168 166 260 . Remotely 4540 | . 355 963 1106 734 1102 145 135 . . . . . Salvage Created 9415 | 126 393 411 1259 470 1168 130 392 1812 326 865 2009 54 Parts 518 | 6 31 33 84 26 80 16 5 80 11 32 114 . Haulers Intercepted 7 | . . . 4 . 1 . . 2 . . . . Recyclers Shooed 1 | . . . . . 1 . . . . . . . Parts Field Recycled 15 | . . . 15 . . . . . . . . . Retrieved Matter 233 | . . . 233 . . . . . . . . . Parts Self-Destructed . | . . . . . . . . . . . . . Prevented . | . . . . . . . . . . . . . Kills | -11 -10 -10 -8 -8 -8 -7 -7 -7 -7 -7 -7 -7 ------- Run | Yrd Mat Sub Mat Gar Mat Fac Was Fac Low Low Zio Dee Combat Hostiles Destroyed 200 | . 14 20 36 18 42 6 2 39 6 8 6 3 Melee 12 | . . . . . . . . 12 . . . . Guns 18 | . 5 . 2 . . . . 6 3 2 . . Cannons 138 | . 6 20 34 18 36 6 1 5 2 4 3 3 AOE 10 | . 3 . . . 6 . 1 . . . . . Classes Destroyed 26 | 2 4 3 5 1 4 . 1 1 1 . 3 1 Worker 8 | . 3 . 1 . 1 . . 3 . . . . Builder 3 | . . . . . 1 1 . 1 . . . . Tunneler 2 | 2 . . . . . . . . . . . . Hauler 7 | . . . 4 . 1 . . 2 . . . . Recycler 3 | 1 . . . . 1 . . 1 . . . . Mechanic 1 | . . . . . 1 . . . . . . . Operator 5 | . . . 3 . 2 . . . . . . . Turret 2 | . . 2 . . . . . . . . . . Watcher 7 | . 1 . 2 . 2 . . 2 . . . . Swarmer 26 | . 2 4 4 . 7 . . 5 3 1 . . Cutter 1 | . . . . 1 . . . . . . . . Grunt 96 | . 12 . 17 16 23 4 . 21 1 2 . . Brawler 5 | . . . . . 1 1 . . 1 2 . . Duelist 2 | . . . 1 . . . . . . 1 . . Protector 1 | . . . . . 1 . . . . . . . Sentry 28 | . . . 13 . 8 . . 6 . 1 . . Hunter 7 | . . . 1 1 2 1 . 2 . . . . Programmer 5 | . . . . . . . . 5 . . . . Behemoth 2 | . . . . . . . . . 1 1 . . Compactor 2 | . . . . . . . 2 . . . . . Artisan 3 | . . 3 . . . . . . . . . . Subdweller 16 | . . 16 . . . . . . . . . . Zionite 55 | . . . . . . . . . . . 55 . Z-Technician 5 | . . . . . . . . . . . . 5 Tinkerer 2 | . . . . . . . . . . . 2 . Assembled 3 | . . . . . . . . . . . . 3 Savage 1 | . . . . . . . . . . 1 . . Butcher 1 | . . . . . . . . . . . 1 . Mutant 4 | . . . . . . . . . . . 4 . Best Kill Streak 23 | 2 4 6 7 5 23 4 1 5 3 6 15 5 Combat Bots Only 12 | . 4 4 6 5 12 3 1 5 3 6 3 3 Max Kills in Single Turn 5 | 1 2 1 2 1 3 2 1 1 1 2 1 5 Gunslinging . | . . . . . . . . . . . . . Exploded 3 | . 2 . . . 3 . 1 . . . . . Melee 1 | . . . . . . . . 1 . . . . Uniques/NPCs Destroyed 1 | . . . . . . . . . . . 1 . 1C-UTU (-7/Zion) Combat | -11 -10 -10 -8 -8 -8 -7 -7 -7 -7 -7 -7 -7 -------- Run | Yrd Mat Sub Mat Gar Mat Fac Was Fac Low Low Zio Dee Hostile Shots Fired 1297 | . 32 124 144 81 138 6 8 391 32 102 234 5 Missed 375 | . 6 39 25 21 49 3 1 117 7 30 75 2 Damage Taken 8770 | . 303 868 1012 475 709 24 340 1555 254 539 2495 196 Core 5970 | . 236 642 716 346 512 18 276 982 150 319 1618 155 Absorbed by Shields 2054 | . . . 209 200 299 9 . 166 97 213 793 68 Redirected to Core 4945 | . 170 522 502 275 392 18 173 817 117 295 1509 155 Redirected to Shielding 2 | . 2 . . . . . . . . . . . Ignored by Resistances 6527 | . 184 536 748 406 608 20 193 1135 206 464 1882 145 Regen/Repaired (Parts) 23 | . . . . . . . . 23 . . . . Core Remaining (%) 67 | 100 . 57 . . 46 . . . . . . . Volleys Fired 739 | 16 31 110 116 57 86 9 15 67 17 41 167 7 Largest 3 | 1 2 2 2 2 2 2 2 1 2 2 3 1 Hottest 136 | 20 70 70 88 118 118 118 118 88 116 116 136 88 Shots Fired 1154 | 16 62 213 207 94 166 18 25 67 28 70 181 7 Gun 154 | 16 33 . 13 . . . . 31 17 29 15 . Cannon 978 | . 29 206 194 92 161 18 21 36 11 41 162 7 Launcher 17 | . . 7 . 1 5 . 4 . . . . . Special 5 | . . . . 1 . . . . . . 4 . Kinetic 865 | 16 52 206 207 92 161 18 21 31 17 29 15 . Thermal 5 | . . . . 1 . . . . . . 4 . Explosive 17 | . . 7 . 1 5 . 4 . . . . . Electromagnetic 267 | . 10 . . . . . . 36 11 41 162 7 Robot Hit Streak 63 | 16 35 46 63 19 22 11 12 33 33 22 46 16 Robot Miss Streak 5 | . 1 2 2 2 5 1 1 1 . 2 1 1 Penetration Max 1 | . . . . . 1 . 1 1 1 1 . . Secondary Targets 1 | . 1 . . . . . . . . . . . Max Gunslinging Chain 1 | . 1 . . . . . . . . . . . Shots Hit Robots 981 | 16 44 133 168 61 112 14 24 125 26 60 193 5 Core Hits 395 | 4 24 40 79 30 74 8 6 31 10 15 68 6 Critical Kills 24 | . . . . 4 13 4 1 2 . . . . Critical Parts Destroyed 44 | . . . . 9 16 1 . 14 1 . 3 . Critical Strikes 108 | . . 5 12 16 34 5 10 16 1 2 6 1 Destroy 62 | . . . . 13 30 5 10 . 1 1 2 . Blast 24 | . . 5 12 3 4 . . . . . . . Corrupt 4 | . . . . . . . . . . 1 2 1 Smash 17 | . . . . . . . . 16 . . 1 . Sever 1 | . . . . . . . . . . . 1 . Melee Attacks 99 | . . . . . . . 1 69 . 1 28 . Impact 81 | . . . . . . . . 67 . 1 13 . Slashing 15 | . . . . . . . . . . . 15 . Piercing 3 | . . . . . . . 1 2 . . . . Sneak Attacks 8 | . . . . . . . . 8 . . . . Combat Hostiles . | . . . . . . . . . . . . . Follow-up Attacks 1 | . . . . . . . . . . . 1 . Damage Inflicted 28931 | 215 959 1907 2975 1604 4417 361 1026 5120 642 1702 5720 2283 Guns 2638 | 215 303 . 230 . . . . 662 325 626 277 . Cannons 17455 | . 355 1907 2745 1536 2994 361 489 1229 317 1076 4283 163 Explosions 4554 | . 301 . . 68 1423 . 536 . . . 106 2120 Melee 4243 | . . . . . . . 1 3229 . . 1013 . Ramming . | . . . . . . . . . . . . . Kinetic 12910 | 215 543 1907 2975 1536 2994 361 489 662 325 626 277 . Thermal 2461 | . 62 . . . 132 . . . . . 147 2120 Explosive 2134 | . 239 . . 68 1291 . 536 . . . . . Electromagnetic 7183 | . 115 . . . . . . 1229 317 1076 4283 163 Impact 3511 | . . . . . . . . 3222 . . 289 . Slashing 724 | . . . . . . . . . . . 724 . Piercing 8 | . . . . . . . 1 7 . . . . Highest Corruption 6 | . 1 1 . . . . . 3 . . 6 . Average Corruption 1 | . 1 1 . . . . . 1 . . 1 . Corruption Purged 13 | . . . . . . . . 6 . . 7 . Corruption Blocked . | . . . . . . . . . . . . . Effects 27 | . . 16 . . . . . 8 . . 3 . Message Errors 8 | . . 4 . . . . . 1 . . 3 . Matter Fused 5 | . . 3 . . . . . 2 . . . . Heat Flow Errors 4 | . . 3 . . . . . 1 . . . . Energy Discharges 2 | . . . . . . . . 2 . . . . Data Loss (minor) 7 | . . 5 . . . . . 2 . . . . Data Loss (major) 1 | . . 1 . . . . . . . . . . Overload Shots . | . . . . . . . . . . . . . Overflow Damage 1772 | . 3 . 16 20 141 . . 1089 . 34 179 290 Projectiles 292 | . . . 16 20 109 . . 42 . 34 71 . Explosions 325 | . 3 . . . 32 . . . . . . 290 Melee 1155 | . . . . . . . . 1047 . . 108 . Knockbacks 108 | . 9 20 27 9 27 3 . 11 . . 2 . Impact 13 | . . . . . . . . 11 . . 2 . Kinetic 87 | . 9 20 24 9 22 3 . . . . . . Secondary 8 | . . . 3 . 5 . . . . . . . Self-Inflicted Damage 689 | . 97 . . . 189 . 132 . . . 31 240 Shots 15 | . 3 . . . 6 . 4 . . . 1 1 Rammed . | . . . . . . . . . . . . . Targets Rammed . | . . . . . . . . . . . . . Kicked . | . . . . . . . . . . . . . Crushed . | . . . . . . . . . . . . . Highest Temperature 360 | . 185 169 199 360 258 96 126 199 . 10 102 21 Average Temperature 53 | . 52 66 65 68 66 44 53 55 . 4 22 8 Received Heat Transfer 2915 | . 189 324 618 333 450 18 . 572 47 143 208 13 Effects 1 | . . . . 1 . . . . . . . . Shutdowns 1 | . . . . 1 . . . . . . . . Siege Activations . | . . . . . . . . . . . . . Robots Corrupted 24 | . . . . . . . . 8 1 4 11 . Combat Hostiles 15 | . . . . . . . . 8 1 3 3 . Parts Fried 75 | . . . . . 2 . . 25 2 5 41 . Impact Corruptions 36 | . . . 1 . 3 . . 31 . . 1 . Robots Melted . | . . . . . . . . . . . . . Combat Hostiles . | . . . . . . . . . . . . . Parts Melted 4 | . . 1 . . . . . . . . 3 . Heat Transferred 486 | . 100 . . . 200 . . . . . 186 . Parts Sabotaged . | . . . . . . . . . . . . . Parts Stolen . | . . . . . . . . . . . . . Parts Stripped . | . . . . . . . . . . . . . Power Chain Reactions 4 | . 1 . . . 2 . . . . . 1 . Missiles Intercepted . | . . . . . . . . . . . . . Alert | -11 -10 -10 -8 -8 -8 -7 -7 -7 -7 -7 -7 -7 ------- Run | Yrd Mat Sub Mat Gar Mat Fac Was Fac Low Low Zio Dee Peak Influence 1076 | 15 329 . 926 597 1076 488 116 321 . . . . Initial 321 | . 7 . . 126 213 321 116 35 . . . . Average 315 | 9 183 . 527 352 568 393 91 127 . . . . Maximum Alert Level 3 | . 1 . 3 2 3 2 . 1 . . . . Low Security (%) 38 | 100 48 . 10 14 . . 100 75 . . . . Level 1 29 | . 51 . 23 41 26 26 . 24 . . . . Level 2 23 | . . . 35 43 53 73 . . . . . . Level 3 9 | . . . 30 . 19 . . . . . . . Level 4 . | . . . . . . . . . . . . . Level 5 . | . . . . . . . . . . . . . High Security . | . . . . . . . . . . . . . Max Security . | . . . . . . . . . . . . . Squads Dispatched 39 | . 7 . 10 . 11 1 . 10 . . . . Investigation 22 | . 7 . 5 . 7 1 . 2 . . . . Extermination 3 | . . . . . . . . 3 . . . . Reinforcement 8 | . . . 2 . 2 . . 4 . . . . Assault 1 | . . . . . 1 . . . . . . . Garrison 5 | . . . 3 . 1 . . 1 . . . . Intercept . | . . . . . . . . . . . . . Searches Triggered . | . . . . . . . . . . . . . Construction Impeded . | . . . . . . . . . . . . . Haulers Reinforced 2 | . . . . . . . . 2 . . . . Active Scanning Responses . | . . . . . . . . . . . . . Cargo Convoy Interrupts . | . . . . . . . . . . . . . Stealth | -11 -10 -10 -8 -8 -8 -7 -7 -7 -7 -7 -7 -7 --------- Run | Yrd Mat Sub Mat Gar Mat Fac Was Fac Low Low Zio Dee Distress Signals 9 | . 1 . 3 . 4 . . 1 . . . . Communications Jammed 28 | . . . . . . . . 28 . . . . Distress Signals 28 | . . . . . . . . 28 . . . . Times Spotted 359 | . 21 41 60 23 56 6 6 57 6 11 69 3 Peak Tracking Total 10 | . 3 6 7 5 10 2 4 4 3 7 8 2 Tactical Retreats 15 | . . 4 1 . 1 . 1 1 . 1 6 . Traps | -11 -10 -10 -8 -8 -8 -7 -7 -7 -7 -7 -7 -7 ------- Run | Yrd Mat Sub Mat Gar Mat Fac Was Fac Low Low Zio Dee Traps Triggered 8 | . . . 3 1 . 1 . 3 . . . . Indirectly . | . . . . . . . . . . . . . Trap Hack Attempts . | . . . . . . . . . . . . . Triggered . | . . . . . . . . . . . . . Disarmed . | . . . . . . . . . . . . . Reprogrammed . | . . . . . . . . . . . . . Reused . | . . . . . . . . . . . . . Traps Extracted . | . . . . . . . . . . . . . Installed . | . . . . . . . . . . . . . Triggered . | . . . . . . . . . . . . . Machines | -11 -10 -10 -8 -8 -8 -7 -7 -7 -7 -7 -7 -7 ---------- Run | Yrd Mat Sub Mat Gar Mat Fac Was Fac Low Low Zio Dee Machines Disabled 19 | . 2 2 3 1 8 1 . . . . . 2 Max in Single Turn 3 | . 2 1 1 1 3 1 . . . . . 2 Garrison Access 3 | . . . . . 1 1 . 1 . . . . Garrison Relay 2 | . . . . 2 . . . . . . . . Machines Repaired . | . . . . . . . . . . . . . Machines Dismantled 14 | . . . . 2 . . . . . . 12 . Machines Sabotaged . | . . . . . . . . . . . . . Overloaded Fab Kills . | . . . . . . . . . . . . . Hacking | -11 -10 -10 -8 -8 -8 -7 -7 -7 -7 -7 -7 -7 --------- Run | Yrd Mat Sub Mat Gar Mat Fac Was Fac Low Low Zio Dee Machines Accessed 65 | . 10 1 14 4 12 3 . 19 . 1 1 . Terminals 40 | . 8 . 10 4 10 2 . 6 . . . . Fabricators 3 | . . . . . . . . 3 . . . . Repair Stations 2 | . . . . . . . . 2 . . . . Recycling Units 7 | . 2 . 1 . 1 . . 3 . . . . Scanalyzers 5 | . . . 2 . . . . 3 . . . . Garrison Access 5 | . . . 1 . 1 1 . 2 . . . . Total Hacks 383 | . 67 3 85 12 81 11 . 118 . 1 5 . Successful 305 | . 50 3 67 9 74 5 . 91 . 1 5 . Failed 78 | . 17 . 18 3 7 6 . 27 . . . . Catastrophic 2 | . . . . . . . . 2 . . . . Database Lockouts . | . . . . . . . . . . . . . Manual 274 | . 56 1 55 7 71 9 . 75 . . . . Terminals 306 | . 63 . 73 12 77 10 . 71 . . . . Fabricators 16 | . . . . . . . . 16 . . . . Repair Stations 3 | . . . . . . . . 3 . . . . Recycling Units 18 | . 4 . 2 . 2 . . 10 . . . . Scanalyzers 22 | . . . 9 . . . . 13 . . . . Garrison Access 9 | . . . 1 . 2 1 . 5 . . . . Terminal Hacks 191 | . 38 3 40 6 57 3 . 38 . 1 5 . Record 3 | . . 3 . . . . . . . . . . Part Schematic 35 | . 5 . 8 . 1 . . 16 . . 5 . Robot Schematic 8 | . 4 . 1 . 2 . . 1 . . . . Robot Analysis 16 | . 3 . 1 . 7 . . 5 . . . . Prototype ID Bank 73 | . 21 . 13 . 33 . . 6 . . . . Open Door 1 | . . . . . . . . . . 1 . . Open DSF 2 | . . . . . . 1 . 1 . . . . Level Access Points 2 | . . . . . 1 . . 1 . . . . Branch Access Points 5 | . 1 . 1 . 1 1 . 1 . . . . Emergency Access Points 2 | . 1 . . 1 . . . . . . . . Machine Index 4 | . . . 1 . 1 1 . 1 . . . . Alert Level 2 | . . . 1 . . . . 1 . . . . Unreport Threat 4 | . . . 3 . 1 . . . . . . . Locate Traps 3 | . . . 2 . 1 . . . . . . . Hauler Manifests 5 | . 1 . 1 . 1 . . 2 . . . . Registered Components 2 | . . . 1 . 1 . . . . . . . Registered Prototypes 2 | . . . . . 1 . . 1 . . . . Zone Layout 18 | . 2 . 7 1 6 . . 2 . . . . Garrison Registry 1 | . . . . 1 . . . . . . . . Patrol Navigation 2 | . . . . 2 . . . . . . . . Security Stations 1 | . . . . 1 . . . . . . . . Fabricator Hacks 13 | . . . . . . . . 13 . . . . Load Schematic 6 | . . . . . . . . 6 . . . . Build 7 | . . . . . . . . 7 . . . . Repair Station Hacks 3 | . . . . . . . . 3 . . . . Scan Component 1 | . . . . . . . . 1 . . . . Repair 1 | . . . . . . . . 1 . . . . Refit 1 | . . . . . . . . 1 . . . . Recycling Unit Hacks 8 | . 2 . 1 . 1 . . 4 . . . . Report Inventory 7 | . 2 . 1 . 1 . . 3 . . . . Retrieve Components 1 | . . . . . . . . 1 . . . . Scanalyzer 22 | . . . 9 . . . . 13 . . . . Insert Component 8 | . . . 3 . . . . 5 . . . . Analyze 14 | . . . 6 . . . . 8 . . . . Garrison Access Hacks 4 | . . . 1 . 1 1 . 1 . . . . Unlock Access 2 | . . . 1 . 1 . . . . . . . Seal Access 2 | . . . . . . 1 . 1 . . . . Unauthorized Hacks 64 | . 10 . 16 3 15 1 . 19 . . . . Terminals 50 | . 8 . 15 3 13 1 . 10 . . . . Track 16 | . 1 . 5 2 4 . . 4 . . . . Assimilate 2 | . . . 1 . 1 . . . . . . . Botnet 23 | . 6 . 6 . 6 1 . 4 . . . . Detonate 1 | . . . . 1 . . . . . . . . Disrupt 2 | . . . 1 . 1 . . . . . . . Operators 6 | . 1 . 2 . 1 . . 2 . . . . Fabricators 2 | . . . . . . . . 2 . . . . Prioritize 2 | . . . . . . . . 2 . . . . Repair Stations . | . . . . . . . . . . . . . Recycling Units 9 | . 2 . 1 . 1 . . 5 . . . . Reject 2 | . . . . . . . . 2 . . . . Recyclers 1 | . . . . . . . . 1 . . . . Mask 1 | . . . . . . . . 1 . . . . Tunnel 5 | . 2 . 1 . 1 . . 1 . . . . Scanalyzers . | . . . . . . . . . . . . . Garrison Access 3 | . . . . . 1 . . 2 . . . . Broadcast 1 | . . . . . . . . 1 . . . . Reprogram 2 | . . . . . 1 . . 1 . . . . Data Cores Recovered 2 | . . . 1 . 1 . . . . . . . Used 2 | . . . 1 . 1 . . . . . . . Hacking Detections 46 | . 9 . 11 3 10 1 . 12 . . . . Full Trace Events 20 | . 7 . 6 . 5 1 . 1 . . . . Feedback Events 2 | . 1 . . . 1 . . . . . . . Corruption 1 | . 1 . . . . . . . . . . . Hackware Fried 1 | . . . . . 1 . . . . . . . Feedback Blocked . | . . . . . . . . . . . . . Robot Schematics Acquired 11 | . 4 . 1 . 2 . . 1 . . 3 . Robots Built . | . . . . . . . . . . . . . Authchips . | . . . . . . . . . . . . . Time . | . . . . . . . . . . . . . Total Robot Build Rating . | . . . . . . . . . . . . . Part Schematics Acquired 59 | . 5 . 11 . 1 . . 21 . . 21 . Parts Built 11 | . . . . . . . . 11 . . . . Authchips . | . . . . . . . . . . . . . Time 347 | . . . . . . . . 347 . . . . Total Part Build Rating 49 | . . . . . . . . 49 . . . . Parts Repaired 1 | . . . . . . . . 1 . . . . Time 62 | . . . . . . . . 62 . . . . Parts Recycled . | . . . . . . . . . . . . . Recycled Matter . | . . . . . . . . . . . . . Retrieved Matter . | . . . . . . . . . . . . . Retrieved Components 3 | . . . . . . . . 3 . . . . Parts Scanalyzed 8 | . . . 3 . . . . 5 . . . . Part Schematics Acquired 8 | . . . 3 . . . . 5 . . . . Parts Damaged 2 | . . . . . . . . 2 . . . . Bothacking | -11 -10 -10 -8 -8 -8 -7 -7 -7 -7 -7 -7 -7 ------------ Run | Yrd Mat Sub Mat Gar Mat Fac Was Fac Low Low Zio Dee Used RIF Installer . | . . . . . . . . . . . . . Robots Hacked . | . . . . . . . . . . . . . Non-combat . | . . . . . . . . . . . . . Combat . | . . . . . . . . . . . . . Robot Hacks Applied . | . . . . . . . . . . . . . Relay Couplers Released 3 | . . . . 2 1 . . . . . . . Machine Destruction 3 | . . . . 2 1 . . . . . . . Fabnet Peak Effective % . | . . . . . . . . . . . . . Robots Rewired 2 | . . . . . . . . . . 2 . . Allies Hacked . | . . . . . . . . . . . . . Hacks Repelled . | . . . . . . . . . . . . . Allies | -11 -10 -10 -8 -8 -8 -7 -7 -7 -7 -7 -7 -7 -------- Run | Yrd Mat Sub Mat Gar Mat Fac Was Fac Low Low Zio Dee Total Allies 5 | . . . 1 . 2 . . . . 2 . . Largest Group 3 | . . . 1 1 3 . . . . 2 2 . Highest-Rated Group 38 | . . . 10 9 38 . . . . 32 32 . Highest-Rated Ally 16 | . . . 10 9 16 . . . . 16 16 . Total Orders . | . . . . . . . . . . . . . Ally Attacks 49 | . . . . . 21 . . . . 6 22 . Total Damage 533 | . . . . . 182 . . . . 75 276 . Kills 1 | . . . . . . . . . . 1 . . Allies Corrupted . | . . . . . . . . . . . . . Allies Melted . | . . . . . . . . . . . . . Intel | -11 -10 -10 -8 -8 -8 -7 -7 -7 -7 -7 -7 -7 ------- Run | Yrd Mat Sub Mat Gar Mat Fac Was Fac Low Low Zio Dee Robot Analysis Total 15 | . 3 . 1 . 7 . . 4 . . . . Derelict Logs Recovered 5 | . . 2 . . . . . . 2 . 1 . Drone Launches . | . . . . . . . . . . . . . Drone Recoveries . | . . . . . . . . . . . . . Exploration | -11 -10 -10 -8 -8 -8 -7 -7 -7 -7 -7 -7 -7 ------------- Run | Yrd Mat Sub Mat Gar Mat Fac Was Fac Low Low Zio Dee Turns Passed 15000 | 126 825 2626 1410 806 1128 248 130 2415 1596 1101 2409 180 Spaces Moved 11146 | 83 717 2332 1122 628 850 167 146 1562 1225 919 1254 141 Core 279 | 27 . . . . . . 129 123 . . . . Treads . | . . . . . . . . . . . . . Legs . | . . . . . . . . . . . . . Wheels 10540 | 56 717 2332 1122 628 850 167 17 1112 1225 919 1254 141 Hover 327 | . . . . . . . . 327 . . . . Flight . | . . . . . . . . . . . . . Fastest Speed 50 | 50 80 80 80 80 95 95 50 50 100 100 100 115 Average Speed 93 | 79 80 90 81 90 95 95 56 96 100 100 106 115 Slowest Speed 160 | 100 80 95 95 95 95 95 100 160 115 100 115 115 Overloaded Moves . | . . . . . . . . . . . . . Propulsion Burnouts . | . . . . . . . . . . . . . Robots Hopped . | . . . . . . . . . . . . . Cave-ins Triggered . | . . . . . . . . . . . . . Exploration Rate (%) 70 | 3 93 97 93 92 75 8 98 42 98 95 92 32 Regions Visited 12 Branch Regions 5 Pre-discovered Areas 10 | . 2 1 1 . 1 . . 1 1 . 3 . Known Exits Taken 9 | 1 1 1 1 . 1 . . 1 1 1 1 . Unknown Exits Taken . | . . . . . . . . . . . . . Scrap Searched 22 | . . 9 . . . . . . 3 5 5 . Spaces Dug 13 | . . 1 . 6 1 . . 4 . 1 . . Terrain Destroyed 219 | . 28 23 3 10 104 1 41 4 . 1 . 4 Melee 5 | . . . . . . . . 4 . 1 . . Projectile 40 | . . 1 3 4 31 1 . . . . . . AOE 174 | . 28 22 . 6 73 . 41 . . . . 4 Terrain Rammed . | . . . . . . . . . . . . . Walls Destroyed . | . . . . . . . . . . . . . Machines Disabled . | . . . . . . . . . . . . . Actions | -11 -10 -10 -8 -8 -8 -7 -7 -7 -7 -7 -7 -7 --------- Run | Yrd Mat Sub Mat Gar Mat Fac Was Fac Low Low Zio Dee Total 14075 | 121 908 2627 1409 754 1004 239 166 2265 1436 1027 1966 153 Wait 1399 | 9 125 146 60 13 40 47 . 401 111 36 409 2 Move 11136 | 82 716 2331 1122 627 849 167 145 1561 1224 918 1253 141 Hop . | . . . . . . . . . . . . . Pick Up 32 | 2 4 1 4 2 2 . 1 13 1 . 2 . Fast Attach 78 | 10 4 2 20 2 1 . 3 21 2 2 11 . Attach 13 | . . 1 2 1 1 . 1 4 . 1 2 . Detach 11 | . 1 . 3 . . . . 5 . . 2 . Swap 48 | 1 1 3 6 4 1 1 . 17 5 2 7 . Drop 79 | 1 8 3 20 5 1 1 . 28 3 1 8 . Fire 739 | 16 31 110 116 57 86 9 15 67 17 41 167 7 Melee 93 | . . . . . . . 1 69 . 1 22 . Ram . | . . . . . . . . . . . . . Kick . | . . . . . . . . . . . . . Crush . | . . . . . . . . . . . . . Escape Stasis 8 | . . . . 8 . . . . . . . . Rewire 2 | . . . . . . . . . . 2 . . Trap . | . . . . . . . . . . . . . Miscellaneous 437 | . 18 30 56 35 23 14 . 79 73 23 83 3 Route ------- -11/Scrapyard -10/Materials (discovered 6 exits: *Mat x3 / *Min x2 / *Sub) -10/Subcaves (discovered 3 exits: *Mat x2 / *Rec) -8/Materials (discovered 5 exits: *Fac x3 / *Sto / Gar) -8/Garrison (discovered 3 exits: *Mat x3) -8/Materials (discovered 4 exits: *Fac x3 / *Sto) -7/Factory (discovered 2 exits: Low x2) -7/Waste -7/Factory (discovered 6 exits: *Fac x4 / *Low x2) -7/Lower Caves -7/Lower Caves (discovered 2 exits: *Fac / *Zio) -7/Zion (discovered 2 exits: *Dee / *Pro) -7/Deep Caves History --------- Turn | Location | Event 1 | -11/Scrapyard | Upgraded with Propulsion slot (x1) 1 | -11/Scrapyard | Upgraded with Utility slot (x4) 1 | -11/Scrapyard | Upgraded with Weapon slot (x1) 3 | -11/Scrapyard | Identified exit to Materials 3 | -11/Scrapyard | Discovered exit to Materials (range 16) 127 | -11/Scrapyard | Entered Materials 136 | -10/Materials | Identified exit to Mines 140 | -10/Materials | Identified exit to Materials 140 | -10/Materials | Discovered exit to Materials (range 16) 346 | -10/Materials | Build established: Hacker-Mutant 461 | -10/Materials | Discovered exit to Materials (range 9) 552 | -10/Materials | Identified exit to Subcaves 552 | -10/Materials | Discovered exit to Subcaves (range 5) 612 | -10/Materials | Discovered exit to Materials (range 16) 634 | -10/Materials | Reached level 2 952 | -10/Materials | Entered Subcaves 954 | -10/Subcaves | Reached level 3 973 | -10/Subcaves | Learned Materials stockpile data 1036 | -10/Subcaves | Learned location of Zion (-7) 1036 | -10/Subcaves | Met a Zionite searching for "candidates" 1065 | -10/Subcaves | Identified exit to Recycling 1065 | -10/Subcaves | Discovered exit to Recycling (range 6) 1402 | -10/Subcaves | Shifting Twisted Machinery released Sub. Optics 1402 | -10/Subcaves | Shifting Twisted Machinery released Sub. Power Source 1603 | -10/Subcaves | Identified exit to Materials 1603 | -10/Subcaves | Discovered exit to Materials (range 14) 1622 | -10/Subcaves | Disturbed a concealed Subdweller 1639 | -10/Subcaves | Upgraded with Utility slot (x1) 1702 | -10/Subcaves | Learned Materials stockpile data 1728 | -10/Subcaves | A swath of the cavern ceiling suddenly collapsed 1915 | -10/Subcaves | Disturbed a concealed Subdweller 1955 | -10/Subcaves | Shifting Twisted Machinery released Mak. Hacking Suite 2136 | -10/Subcaves | Visited Clippyterm 2422 | -10/Subcaves | Core integrity fell below 50% 2485 | -10/Subcaves | Shifting Twisted Machinery released Sub. Machine Gun 2490 | -10/Subcaves | Shifting Twisted Machinery released Sub. Beam Cannon 2808 | -10/Subcaves | Ambushed by angry Subdweller bent on revenge 3578 | -10/Subcaves | Entered Materials 3580 | -8/Materials | Reached level 4 3580 | -8/Materials | Reached level 5 3580 | -8/Materials | Reached level 6 3614 | -8/Materials | Garrison activated, responded to threat 3631 | -8/Materials | Core integrity fell below 50% 3684 | -8/Materials | Reached level 7 3719 | -8/Materials | Upgraded with Propulsion slot (x1) 3719 | -8/Materials | Upgraded with Utility slot (x2) 3838 | -8/Materials | Identified exit to Factory 3838 | -8/Materials | Discovered exit to Factory (range 15) 3957 | -8/Materials | Identified exit to Storage 3984 | -8/Materials | Reached level 8 4008 | -8/Materials | Upgraded with Utility slot (x1) 4031 | -8/Materials | Build established: Hacker-Skirmisher 4160 | -8/Materials | Reached level 9 4333 | -8/Materials | Upgraded with Power slot (x1) 4437 | -8/Materials | Discovered exit to Factory (range 9) 4619 | -8/Materials | Discovered exit to Factory (range 4) 4905 | -8/Materials | Reached level 10 4986 | -8/Materials | Identified exit to Garrison 4988 | -8/Materials | Entered Garrison 4988 | -8/Garrison | Accompanied by 1 ally 5011 | -8/Garrison | Learned Materials security intel 5042 | -8/Garrison | Triggered checkpoint 5194 | -8/Garrison | Upgraded with Weapon slot (x1) 5226 | -8/Garrison | Triggered checkpoint 5253 | -8/Garrison | Triggered checkpoint 5274 | -8/Garrison | Reached level 11 5313 | -8/Garrison | Identified exit to Materials 5313 | -8/Garrison | Discovered exit to Materials (range 13) 5371 | -8/Garrison | Garrison Relay disabled 5432 | -8/Garrison | Triggered checkpoint 5484 | -8/Garrison | Triggered checkpoint 5505 | -8/Garrison | Garrison Relay disabled 5574 | -8/Garrison | Discovered exit to Materials (range 10) 5638 | -8/Garrison | Triggered checkpoint 5664 | -8/Garrison | Triggered checkpoint 5731 | -8/Garrison | Discovered exit to Materials (range 34) 5731 | -8/Garrison | Discovered exit to Materials (range 56) 5731 | -8/Garrison | Discovered exit to Materials (range 61) 5748 | -8/Garrison | Triggered checkpoint 5794 | -8/Garrison | Entered Materials 5794 | -8/Materials | Accompanied by 1 ally 5877 | -8/Materials | Hacking Suite fried by hacking feedback 5986 | -8/Materials | Reached level 12 6081 | -8/Materials | Discovered exit to Factory (range 5) 6547 | -8/Materials | Upgraded with Utility slot (x1) 6555 | -8/Materials | Identified exit to Garrison 6637 | -8/Materials | Garrison activated, responded to threat 6658 | -8/Materials | Lost 3 allies 6697 | -8/Materials | Reached level 13 6718 | -8/Materials | Destroyed 12 combat bots 6770 | -8/Materials | Destroyed 9 combat bots 6922 | -8/Materials | Entered Factory 6923 | -7/Factory | Core integrity fell below 50% 6924 | -7/Factory | Reached level 14 7067 | -7/Factory | Identified exit to Lower Caves 7170 | -7/Factory | Sucked down chute 7170 | -7/Factory | Entered Waste 7178 | -7/Waste | Spotted C-40 Crusher 7179 | -7/Waste | Spotted C-40 Crusher 7186 | -7/Waste | Destroyed C-40 Crusher 7196 | -7/Waste | Spotted C-40 Crusher 7212 | -7/Waste | Spotted C-40 Crusher 7215 | -7/Waste | Crushed by Compactor (1 part destroyed, 1 dropped) 7218 | -7/Waste | Crushed by Compactor (1 part destroyed, 1 dropped) 7221 | -7/Waste | Crushed by Compactor (1 part destroyed, 2 dropped) 7222 | -7/Waste | Destroyed C-40 Crusher 7223 | -7/Waste | Spotted C-40 Crusher 7224 | -7/Waste | Crushed by Compactor (1 part destroyed, 1 dropped) 7227 | -7/Waste | Crushed by Compactor (1 part destroyed, 1 dropped) 7233 | -7/Waste | Crushed by Compactor (1 part destroyed, 1 dropped) 7264 | -7/Waste | Lost 6 parts (2p2u2w) 7265 | -7/Waste | Spotted C-40 Crusher 7273 | -7/Waste | Identified exit to Factory 7273 | -7/Waste | Discovered exit to Factory (range 17) 7292 | -7/Waste | Crushed by Compactor (1 part destroyed, 1 dropped) 7300 | -7/Waste | Entered Factory 7304 | -7/Factory | Identified exit to Factory 7577 | -7/Factory | Reached level 15 7730 | -7/Factory | Build established: Wizard-Scout 8085 | -7/Factory | Build established: Wizard-Assassin 8090 | -7/Factory | Fabricated HERF Cannon (x1) 8092 | -7/Factory | Upgraded with Propulsion slot (x1) 8092 | -7/Factory | Upgraded with Utility slot (x1) 8134 | -7/Factory | Fabricated Powered Armor? 8181 | -7/Factory | Core integrity fell below 20% 8301 | -7/Factory | Fabricated Arm. Huge Wheel (x2) 8546 | -7/Factory | Garrison activated, responded to threat 8733 | -7/Factory | Fabricated Hyb. Deuterium Engine? 8780 | -7/Factory | Reached level 16 8810 | -7/Factory | Repaired Lrn. Sensor Array 8866 | -7/Factory | Upgraded with Power slot (x1) 8891 | -7/Factory | Fabricated Imp. Shield Generator? 9523 | -7/Factory | Fabricated Imp. Hacking Suite (x1) 9580 | -7/Factory | Fabricated Imp. System Shield (x1) 9715 | -7/Factory | Entered Lower Caves 9721 | -7/Lower Caves | Met a Warlord Commander 9722 | -7/Lower Caves | Learned location of Warlord (-5) 9726 | -7/Lower Caves | Found Unknown Device 9726 | -7/Lower Caves | Identified Encrypted Comm Array 9829 | -7/Lower Caves | Encountered a Warlord checkpoint 9839 | -7/Lower Caves | Learned Factory terminal intel 9851 | -7/Lower Caves | Identified exit to Lower Caves 9890 | -7/Lower Caves | Spotted B-75 Beast 9938 | -7/Lower Caves | Destroyed B-75 Beast 11256 | -7/Lower Caves | Build established: Wizard-Skirmisher 11311 | -7/Lower Caves | Entered another Lower Caves area 11358 | -7/Lower Caves | Discovered exit to Factory (range 9) 11549 | -7/Lower Caves | Spotted B-75 Beast 11578 | -7/Lower Caves | Destroyed B-75 Beast 11598 | -7/Lower Caves | Build established: Wizard-Assassin 11626 | -7/Lower Caves | Attracted the attention of an 0b10 outpost 11650 | -7/Lower Caves | Reached level 17 11741 | -7/Lower Caves | Encountered a Warlord checkpoint 11801 | -7/Lower Caves | Attracted the attention of an 0b10 checkpoint 12290 | -7/Lower Caves | Found Alien Artifact 12290 | -7/Lower Caves | Identified Core Expander 12290 | -7/Lower Caves | Installed Core Expander, added new Utility slot 12320 | -7/Lower Caves | Identified exit to Zion 12320 | -7/Lower Caves | Discovered exit to Zion (range 11) 12412 | -7/Lower Caves | Entered Zion 12412 | -7/Zion | Accompanied by 2 allies 12471 | -7/Zion | Identified exit to Proximity Caves 12471 | -7/Zion | Discovered exit to Proximity Caves (range 14) 12551 | -7/Zion | Learned Factory stockpile data 12795 | -7/Zion | Learned location of Armory (-3) 12914 | -7/Zion | Found Prototype Processor 12914 | -7/Zion | Identified Exp. Terrain Scan Processor 12919 | -7/Zion | Found Prototype Processor 12919 | -7/Zion | Identified Exp. Armor Integrity Analyzer 12923 | -7/Zion | Found Prototype Processor 12923 | -7/Zion | Identified Exp. Targeting Computer 12926 | -7/Zion | Found Prototype Processor 12926 | -7/Zion | Identified Spectral Analyzer 13115 | -7/Zion | Identified exit to Deep Caves 13115 | -7/Zion | Discovered exit to Deep Caves (range 3) 13115 | -7/Zion | Saw the warning signs outside the Deep Caves entrance 13288 | -7/Zion | Found Prototype Device 13288 | -7/Zion | Identified Mobile Refinery Mk. CCLXVII 13326 | -7/Zion | Build established: Wizard-Skirmisher 13446 | -7/Zion | Attacked by Zionites 13905 | -7/Zion | Spotted 69-BUO(B) 14019 | -7/Zion | 1C-UTU came to Zion's defense 14113 | -7/Zion | Destroyed 1C-UTU 14117 | -7/Zion | Found Prototype Protection 14117 | -7/Zion | Identified 1C-UTU's Buckler 14120 | -7/Zion | Found Corrupted Prototype Device 14120 | -7/Zion | Identified Exp. Actuator Array 14125 | -7/Zion | Found Corrupted Prototype Slashing Weapon 14135 | -7/Zion | Identified 1C-UTU's Sword "Choppy" 14421 | -7/Zion | Build established: Wizard-Gladiator 14821 | -7/Zion | Entered Deep Caves 15001 | -7/Deep Caves | Attacked by Z-Imprinter 15001 | -7/Deep Caves | Z-Facility disabled 15001 | -7/Deep Caves | Destroyed self via exploding Z-Power Last Messages --------------- LOCATION=DEEP CAVES GOAL=ESCAPE 14852_ as-83430 destroyed. 14861_ as-63534 destroyed. 14865_ Upgraded: Core Integrity (+50) 14868_ as-85194 destroyed. 14877_ Used Protomatter to restore core integrity (+57, depleted) 14967_ Y4-VBY(o) is busy at the terminal. 14992_ NEW_ZION: Z-Facility proximity alert. 14992_ D1-X9W(o) is busy at the terminal. Z-Imprinter: GET AWAY FROM HERE! I've worked too hard for our future just to have you ruin everything! 15001_ Z-Power explodes. 15001_ Y4-VBY(o) destroyed. 15001_ Destroyed Hover Unit. 15001_ Destroyed Mak. Hacking Suite. 15001_ Destroyed Datajack. 15001_ D1-X9W(o) destroyed. 15001_ Z-Facility disabled. 15001_ RL-NKI(o) destroyed. Map ----- +----------------------------------------------------+ | ????????????????????"" #???? | | ??????????????????? " ##??? | | ?????????????????? #??? | | ?????????????????? #??? | | ???????????????? #??? | | ????????????? ##??? | | ??????????? ##??? | | ?????????" #??? | | ?????????" #??? | | ???????? " I ##??? | | ??????? " ##???? | | ?????? " ##???? | | ?????? ##??? | | ????? #??? | | ????? #??? | | ????? ##??? | | ???? #???? | | ???? ##??? | | ??? #??? | | ??? ##?? | | ??? #?? | | ?? ##? | | ?? #? | | ?? #? | | ? #? | | ? @;#### #? | | ?????# ####???### #### #? | | ?????## ???????????######??## ##? | | ??????### #??????????????????????## ###?? | | ????????########???????????????????????????###???? | | ?????????????????????????????????????????????????? | | | | | | | | | | | | | | | | | | | | | | | | | | | | | | | | | | | | | | | +----------------------------------------------------+ Best States ------------- Heat Dissipation 94 Coolant Potential 65 Energy Generation 38 Energy Capacity 1700 Matter Stores 500 Matter Capacity 500 Sight Range 25 Robot Scan Range 18 Terrain Scan Range 16 Terrain Scan Density 210 Jamming Range 12 Armor Coverage 800 Resistance: KI 65 Resistance: TH 35 Resistance: EX 35 Resistance: EM 35 Resistance: I 35 Resistance: S 35 Resistance: P 35 Power Shielding 33 Evasion (%) 51 Targeting Accuracy 8 Target Analysis 5 Offensive Hacking 53 Defensive Hacking 33 Item Schematics ----------------- Wheel | -10/Materials | Hacked Com. Wheel | -10/Materials | Hacked Transport Network Coupler | -10/Materials | Hacked Datajack | -10/Materials | Hacked Arm. Wheel | -10/Materials | Hacked Hacking Suite | -8/Materials | Hacked System Shield | -8/Materials | Hacked Hpw. Tractor Beam | -8/Materials | Hacked Lrn. Tractor Beam | -8/Materials | Hacked Plasma Cutter | -8/Materials | Scanalyzed Mak. Light Armor Plating | -8/Materials | Scanalyzed Mak. Power Source | -8/Materials | Scanalyzed Shield Generator | -8/Materials | Hacked Cld. Ion Engine | -8/Materials | Hacked Hvy. Assault Cannon | -8/Materials | Hacked Hvy. Flail | -8/Materials | Hacked Adv. Weight Redist. System | -8/Materials | Hacked Arm. Huge Wheel | -7/Factory | Hacked System Restoration Module | -7/Factory | Hacked Corruption Screen | -7/Factory | Hacked Lightning Gun | -7/Factory | Hacked Arc Projector | -7/Factory | Hacked Hyb. Deuterium Engine | -7/Factory | Hacked Powered Armor | -7/Factory | Hacked Transmission Jammer | -7/Factory | Hacked Armor Integrity Analyzer | -7/Factory | Hacked Core Analyzer | -7/Factory | Hacked Target Analyzer | -7/Factory | Hacked Imp. Shield Generator | -7/Factory | Hacked Lrn. Sensor Array | -7/Factory | Scanalyzed Adv. System Restoration Module | -7/Factory | Scanalyzed Antimatter Reactor | -7/Factory | Scanalyzed HERF Cannon | -7/Factory | Scanalyzed Imp. Cooling System | -7/Factory | Scanalyzed Imp. Hacking Suite | -7/Factory | Hacked Imp. System Shield | -7/Factory | Hacked Prc. Shock Rifle | -7/Factory | Hacked Adv. Signal Interpreter | -7/Factory | Hacked Beamcaster | -7/Zion | Free Battle Rifle | -7/Zion | Free Hvy. Battle Rifle | -7/Zion | Free Flamer | -7/Zion | Free Enh. Flamer | -7/Zion | Free Hvy. Mass Driver | -7/Zion | Archive 0b10 Decoder Chip [Scout] | -7/Zion | Archive Med. Reactive Plating | -7/Zion | Archive Mak. Hammer | -7/Zion | Archive Arm. Leg | -7/Zion | Archive Imp. Coolant Injector | -7/Zion | Archive Gauss Cannon | -7/Zion | Archive Angular Momentum Engine | -7/Zion | Archive Adv. Terrain Scan Processor | -7/Zion | Archive Stasis Canceller | -7/Zion | Archive Remote Datajack | -7/Zion | Archive Plasma Flamer | -7/Zion | Archive Hvy. Rocket Launcher | -7/Zion | Archive Magnetic Acceleration Cannon | -7/Zion | Archive Mak. System Shield | -7/Zion | Archive Mass Driver | -7/Zion | Archive Robot Schematics ------------------ O-16 Technician | -10/Materials | Hacked M-13 Machinist | -10/Materials | Hacked G-34 Mercenary | -10/Materials | Hacked S-10 Pest | -10/Materials | Hacked Y-45 Defender | -8/Materials | Hacked H-55 Commando | -8/Materials | Hacked D-53 Grenadier | -8/Materials | Hacked M-28 Smith | -7/Factory | Hacked K-01 Serf | -7/Zion | Archive T-07 Excavator | -7/Zion | Archive Y-54 Guardian | -7/Zion | Archive Fabricated ------------ HERF Cannon | x1 | -7/Factory | Preloaded Powered Armor | x2 | -7/Factory Arm. Huge Wheel | x2 | -7/Factory Hyb. Deuterium Engine | x2 | -7/Factory Imp. Shield Generator | x2 | -7/Factory Imp. Hacking Suite | x1 | -7/Factory Imp. System Shield | x1 | -7/Factory Alien Tech Used ----------------- Core Expander Achievements -------------- None Challenges ------------ None RPGLIKE | -11 -10 -10 -8 -8 -8 -7 -7 -7 -7 -7 -7 -7 --------- Run | Yrd Mat Sub Mat Gar Mat Fac Was Fac Low Low Zio Dee Levels Raised 16 | . 1 1 7 1 2 1 . 2 . 1 . . XP Earned 30453 | 6000 2235 1600 9744 2217 2956 2056 139 2228 419 468 152 239 XP Spent 29695 | 5900 750 1790 9420 1280 2900 . . 5270 . . 2200 185 Upgrades 52 | 11 1 2 9 5 1 . . 4 . . 18 1 Power Slot 2 | . . . 1 . . . . 1 . . . . Propulsion Slot 3 | 1 . . 1 . . . . 1 . . . . Utility Slot 10 | 4 . 1 3 . 1 . . 1 . . . . Weapon Slot 2 | 1 . . . 1 . . . . . . . . Core Integrity 17 | . . . . . . . . . . . 16 1 Heat Dissipation 7 | . . . 2 4 . . . 1 . . . . Mass Support 1 | . . . 1 . . . . . . . . . Inventory Capacity 4 | 2 1 . 1 . . . . . . . . . Sight Range 1 | 1 . . . . . . . . . . . . Terrain Scan Density 2 | 1 . 1 . . . . . . . . . . Hack Attack % 2 | . . . . . . . . . . . 2 . Hack Defense % 1 | 1 . . . . . . . . . . . . Protomatter Created 2834 | . 224 171 472 226 365 198 100 724 70 183 82 19 Integrity Restored 5815 | . 309 536 1155 556 306 321 . 1658 186 485 246 57 Core 4500 | . 236 386 972 346 191 321 . 1276 123 346 246 57 Parts 1315 | . 73 150 183 210 115 . . 382 63 139 . . Protomatter Decayed 414 | . 42 60 . 6 283 . . . 7 16 . . Game ------ Seed XenonDisruptorBlaster Manual? 0 Play Time 02:57:27 Cumulative 525.8 hours Start 2024.01.31 @ 14:40:30 End 2024.02.01 @ 12:36:30 Sessions 4 Manual Loads 0 Difficulty Explorer Special Mode Winter2019/RPGLIKE Game No. 203 Rogue 185 Adventurer 3 Explorer 15 Win Type - Total 12 Types 8/2/0/1/0/1/0/0/0 Lore% 84 Gallery% 92 Achievement% 81 Wizard Run 0 Options --------- ASCII 0 Keyboard 0 Movement Numpad Keybinds 0 Fullscreen 1 Font 18/SmallcapsGlow Map View 76x50 Zoom Use 0% Tactical HUD 1 Map Filters NONE Filters NONE Steam 1 RUN: 67eccf60-abf6-43b3-bbb9-6dda2662d89f